fUSD/lending_fUSD_20240923
["ID","MTS","AMOUNT","RATE_DAILY","PERIOD"]
[339000931,1727115943120,-500.0,0.00012876,2]
[339000932,1727115943142,-500.0,0.00012876,2]
[339000933,1727115943162,-500.0,0.00012876,2]
[339000934,1727115943183,-500.0,0.00012876,2]
[339000935,1727115943205,-500.0,0.00012876,2]
[339000936,1727115943227,-500.0,0.00012876,2]
[339000937,1727115943248,-500.0,0.00012876,2]
[339000938,1727115943269,-500.0,0.00012876,2]
[339000939,1727115943294,-500.0,0.00012876,2]
[339000940,1727115943315,-531.49,0.00012876,2]
[339000941,1727115943338,-500.0,0.00012876,2]
[339000942,1727115943362,-500.0,0.00012876,2]
[339000943,1727115943382,-500.0,0.00012876,2]
[339000944,1727115943404,-168.17765895,0.00012876,2]
[339000945,1727115943425,-500.0,0.00012876,2]
[339000946,1727115943448,-183.2287186,0.00012876,2]
[339000947,1727115943469,-500.0,0.00012876,2]
[339000948,1727115943489,-500.0,0.00012876,2]
[339000949,1727115943510,-500.0,0.00012876,2]
[339000950,1727115943532,-500.0,0.00012876,2]
[339000951,1727115943553,-500.0,0.00012876,2]
[339000952,1727115943573,-500.0,0.00012876,2]
[339000953,1727115943594,-500.0,0.00012876,2]
[339000954,1727115943615,-500.0,0.00012876,2]
[339000955,1727115943636,-500.0,0.00012876,2]
[339000956,1727115943658,-500.0,0.00012876,2]
[339000957,1727115943679,-500.0,0.00012876,2]
[339000958,1727115943701,-500.0,0.00012876,2]
[339000959,1727115943721,-174.23655245,0.00012876,2]
[339000960,1727115943742,-500.0,0.00012876,2]
[339000961,1727115943763,-500.0,0.00012876,2]
[339000962,1727115943784,-642.14962672,0.00012876,2]
[339000963,1727115943805,-500.0,0.00012876,2]
[339000964,1727115943826,-500.0,0.00012876,2]
[339000965,1727115943847,-247.53,0.00012876,2]
[339000966,1727115943867,-500.0,0.00012876,2]
[339000967,1727115943888,-500.0,0.00012876,2]
[339000968,1727115943909,-462.39063769,0.00012876,2]
[339000969,1727115943931,-500.0,0.00012876,2]
[339000970,1727115943954,-500.0,0.00012876,2]
[339000971,1727115943974,-500.0,0.00012876,2]
[339000972,1727115943995,-500.0,0.00012876,2]
[339000973,1727115944016,-500.0,0.00012876,2]
[339000974,1727115944038,-500.0,0.00012876,2]
[339000975,1727115944059,-500.0,0.00012876,2]
[339000976,1727115944081,-500.0,0.00012876,2]
[339000977,1727115944102,-415.49120088,0.00012876,2]
[339000978,1727115944124,-500.80747224,0.00012876,2]
[339000979,1727115944145,-500.0,0.00012876,2]
[339000980,1727115944166,-500.0,0.00012876,2]
[339000981,1727115944187,-500.3610625,0.00012876,2]
[339000982,1727115944216,-500.45526255,0.00012876,2]
[339000983,1727115944236,-500.0,0.00012876,2]
[339000984,1727115944257,-500.0,0.00012876,2]
[339000985,1727115944278,-500.0,0.00012876,2]
[339000986,1727115944298,-473.77979568,0.00012876,2]
[339000987,1727115944322,-500.0,0.00012876,2]
[339000988,1727115944485,-500.0,0.00012876,2]
[339000989,1727115944515,-500.88377738,0.00012876,2]
[339000990,1727115944536,-500.0,0.00012876,2]
[339000991,1727115944557,-555.96164576,0.00012876,2]
[339000992,1727115944582,-500.97415054,0.00012876,2]
[339000993,1727115944603,-500.0,0.00012876,2]
[339000994,1727115944625,-500.0,0.00012876,2]
[339000995,1727115944647,-500.0,0.00012876,2]
[339000996,1727115944667,-500.0,0.00012876,2]
[339000997,1727115944688,-500.0,0.00012876,2]
[339000998,1727115944710,-500.0,0.00012876,2]
[339000999,1727115944731,-500.0,0.00012876,2]
[339001000,1727115944752,-500.0,0.00012876,2]
[339001001,1727115944773,-500.0,0.00012876,2]
[339001002,1727115944793,-500.0,0.00012876,2]
[339001003,1727115944813,-419.90676742,0.00012876,2]
[339001004,1727115944835,-500.0,0.00012876,2]
[339001005,1727115944856,-500.0,0.00012876,2]
[339001006,1727115944877,-509.83422856,0.00012876,2]
[339001007,1727115944899,-273.81,0.00012876,2]
[339001008,1727115944919,-500.0,0.00012876,2]
[339001009,1727115944940,-500.0,0.00012876,2]
[339001010,1727115944963,-500.0,0.00012876,2]
[339001011,1727115944984,-510.7944,0.00012876,2]
[339001012,1727115945007,-500.00000001,0.00012876,2]
[339001013,1727115945028,-529.94681508,0.00012876,2]
[339001014,1727115945050,-500.0,0.00012876,2]
[339001015,1727115945071,-500.0,0.00012876,2]
[339001016,1727115945092,-500.0,0.00012876,2]
[339001017,1727115945114,-500.0,0.00012876,2]
[339001018,1727115945136,-501.1948249,0.00012876,2]
[339001019,1727115945157,-500.0,0.00012876,2]
[339001020,1727115945178,-500.0,0.00012876,2]
[339001021,1727115945202,-500.0,0.00012876,2]
[339001022,1727115945224,-500.0,0.00012876,2]
[339001023,1727115945246,-500.0,0.00012876,2]
[339001024,1727115945268,-500.0,0.00012876,2]
[339001025,1727115945290,-500.0,0.00012876,2]
[339001026,1727115945311,-500.0,0.00012876,2]
[339001027,1727115945333,-500.0,0.00012876,2]
[339001028,1727115945355,-500.0,0.00012876,2]
[339001029,1727115945380,-500.0,0.00012876,2]
[339001030,1727115945403,-500.0,0.00012876,2]
[339001031,1727115945424,-500.0,0.00012876,2]
[339001032,1727115945450,-500.0,0.00012876,2]
[339001033,1727115945470,-500.0,0.00012876,2]
[339001034,1727115945491,-500.0,0.00012876,2]
[339001035,1727115945514,-500.0,0.00012876,2]
[339001036,1727115945535,-330.36741301,0.00012876,2]
[339001037,1727115945556,-500.0,0.00012876,2]
[339001038,1727115945577,-500.0,0.00012876,2]
[339001039,1727115945598,-500.0,0.00012876,2]
[339001040,1727115945619,-500.0,0.00012876,2]
[339001041,1727115945642,-500.0,0.00012876,2]
[339001042,1727115945663,-500.0,0.00012876,2]
[339001043,1727115945685,-500.0,0.00012876,2]
[339001044,1727115945709,-500.0,0.00012876,2]
[339001045,1727115945731,-500.0,0.00012876,2]
[339001046,1727115945759,-296.70141496,0.00012876,2]
[339001047,1727115945781,-500.0,0.00012876,2]
[339001048,1727115945803,-503.83,0.00012876,2]
[339001049,1727115945825,-503.83,0.00012876,2]
[339001050,1727115945847,-503.83,0.00012876,2]
[339001051,1727115945869,-503.83,0.00012876,2]
[339001052,1727115945892,-503.83,0.00012876,2]
[339001053,1727115945915,-500.0,0.00012876,2]
[339001054,1727115945938,-500.0,0.00012876,2]
[339001055,1727115945963,-500.0,0.00012876,2]
[339001056,1727115945987,-500.0,0.00012876,2]
[339001057,1727115946010,-500.0,0.00012876,2]
[339001058,1727115946033,-500.0,0.00012876,2]
[339001059,1727115946055,-500.0,0.00012876,2]
[339001060,1727115946078,-500.0,0.00012876,2]
[339001061,1727115946100,-500.0,0.00012876,2]
[339001062,1727115946122,-500.0,0.00012876,2]
[339001063,1727115946143,-282.27,0.00012876,2]
[339001064,1727115946165,-500.0,0.00012876,2]
[339001065,1727115946187,-500.0,0.00012876,2]
[339001066,1727115946210,-500.0,0.00012876,2]
[339001067,1727115946232,-500.0,0.00012876,2]
[339001068,1727115946253,-500.0,0.00012876,2]
[339001069,1727115946276,-500.0,0.00012876,2]
[339001070,1727115946298,-500.0,0.00012876,2]
[339001071,1727115946320,-500.0,0.00012876,2]
[339001072,1727115946343,-500.0,0.00012876,2]
[339001073,1727115946366,-584.87,0.00012876,2]
[339001074,1727115946388,-500.0,0.00012876,2]
[339001075,1727115946410,-500.0,0.00012876,2]
[339001076,1727115946431,-500.0,0.00012876,2]
[339001077,1727115946456,-500.0,0.00012876,2]
[339001078,1727115946478,-500.0,0.00012876,2]
[339001079,1727115946499,-500.0,0.00012876,2]
[339001080,1727115946520,-500.0,0.00012876,2]
[339001081,1727115946544,-500.0,0.00012876,2]
[339001082,1727115946565,-500.0,0.00012876,2]
[339001083,1727115946589,-500.0,0.00012876,2]
[339001084,1727115946610,-500.0,0.00012876,2]
[339001085,1727115946632,-500.0,0.00012876,2]
[339001086,1727115946653,-267.34,0.00012876,2]
[339001087,1727115946675,-500.0,0.00012876,2]
[339001088,1727115946697,-500.0,0.00012876,2]
[339001089,1727115946719,-500.0,0.00012876,2]
[339001090,1727115946741,-649.50913181,0.00012876,2]
[339001091,1727115946763,-500.0,0.00012876,2]
[339001092,1727115946784,-500.0,0.00012876,2]
[339001093,1727115946805,-500.0,0.00012876,2]
[339001094,1727115946827,-500.0,0.00012876,2]
[339001095,1727115946849,-397.16140158,0.00012876,2]
[339001096,1727115946871,-500.0,0.00012876,2]
[339001097,1727115946892,-500.0,0.00012876,2]
[339001098,1727115946914,-183.02530684,0.00012876,2]
[339001099,1727115946936,-155.0,0.0001289,2]
[339001100,1727115946960,-8659.78315314,0.000129,7]
[339001101,1727115946982,-204.79203247,0.000129,2]
[339001102,1727115947005,-205.29,0.000129,2]
[339001103,1727115947027,-155.85325521,0.000129,2]
[339001104,1727115947049,-157.52590797,0.000129,2]
[339001105,1727115947071,-716.2,0.000129,2]
[339001106,1727115947095,-5374.03585133,0.000129,2]
[339001107,1727115947118,-178.43047602,0.000129,2]
[339001108,1727115947140,-463.04156914,0.000129,2]
[339001109,1727115947162,-597.00070928,0.00012903,2]
[339001110,1727115947183,-716.2,0.00012918,2]
[339001111,1727115947209,-150.0,0.00012961,2]
[339001112,1727115947230,-160.29487201,0.00012973,2]
[339001113,1727115947253,-500.0,0.00012973,2]
[339001114,1727115947282,-500.0,0.00012973,2]
[339001115,1727115947305,-200.0,0.00012979,2]
[339001116,1727115947330,-2000.0,0.00012979,2]
[339001117,1727115947352,-200.0,0.00012979,2]
[339001118,1727115947377,-200.0,0.00012979,2]
[339001119,1727115947399,-2000.0,0.00012979,2]
[339001120,1727115947422,-200.0,0.00012979,2]
[339001121,1727115947449,-500.0,0.00012987,2]
[339001122,1727115947472,-500.0,0.00012987,2]
[339001123,1727115947493,-500.0,0.00012987,2]
[339001124,1727115947515,-500.0,0.00012987,2]
[339001125,1727115947537,-500.0,0.00012987,2]
[339001126,1727115947560,-393.4145,0.00012987,2]
[339001127,1727115947585,-986.080555,0.00012996,2]
[339001128,1727115947607,-29644.6323251,0.00012996,2]
[339001129,1727115947628,-4199.99999901,0.00012998,2]
[339001130,1727115947650,-500.0,0.00012998,2]
[339001131,1727115947672,-500.0,0.00012998,2]
[339001132,1727115947694,-500.0,0.00012999,2]
[339001133,1727115947720,-500.0,0.00012999,2]
[339001134,1727115947742,-500.0,0.00012999,2]
[339001135,1727115947763,-500.0,0.00012999,2]
[339001136,1727115947785,-500.0,0.00012999,2]
[339001137,1727115947809,-500.0,0.00012999,2]
[339001138,1727115947831,-500.0,0.00012999,2]
[339001139,1727115947852,-151.0,0.00012999,2]
[339001140,1727115947875,-151.0,0.00012999,2]
[339001141,1727115947897,-151.0,0.00012999,2]
[339001142,1727115947918,-151.0,0.00012999,2]
[339001143,1727115947939,-466.23757018,0.00012999,2]
[339001144,1727115947964,-151.0,0.00012999,2]
[339001145,1727115947985,-151.0,0.00012999,2]
[339001146,1727115948008,-151.0,0.00012999,2]
[339001147,1727115948031,-151.0,0.00012999,2]
[339001148,1727115948054,-151.0,0.00012999,2]
[339001149,1727115948081,-185.088054,0.00012999,2]
[339001150,1727115948104,-185.088054,0.00012999,2]
[339001151,1727115948128,-151.0,0.00012999,2]
[339001152,1727115948153,-151.0,0.00012999,2]
[339001153,1727115948175,-715.321845,0.00012999,2]
[339001154,1727115948199,-715.321845,0.00012999,2]
[339001155,1727115948221,-151.0,0.00012999,2]
[339001156,1727115948244,-151.0,0.00012999,2]
[339001157,1727115948267,-151.0,0.00012999,2]
[339001158,1727115948289,-151.0,0.00012999,2]
[339001159,1727115948312,-151.0,0.00012999,2]
[339001160,1727115948334,-232.318237,0.00012999,2]
[339001161,1727115948360,-232.318237,0.00012999,2]
[339001162,1727115948383,-169.77,0.00012999,2]
[339001163,1727115948405,-151.0,0.00012999,2]
[339001164,1727115948428,-500.0,0.00012999,2]
[339001165,1727115948607,-619.22,0.00012999,2]
[339001166,1727115948632,-500.0,0.00012999,2]
[339001167,1727115948657,-500.0,0.00012999,2]
[339001168,1727115948680,-500.0,0.00012999,2]
[339001169,1727115948704,-500.0,0.00012999,2]
[339001170,1727115948727,-500.0,0.00012999,2]
[339001171,1727115948752,-500.0,0.00012999,2]
[339001172,1727115948774,-291.14,0.00012999,2]
[339001173,1727115948797,-500.0,0.00012999,2]
[339001174,1727115948819,-500.0,0.00012999,2]
[339001175,1727115948841,-500.0,0.00012999,2]
[339001176,1727115948864,-500.0,0.00012999,2]
[339001177,1727115948888,-500.0,0.00012999,2]
[339001178,1727115948911,-500.0,0.00012999,2]
[339001179,1727115948934,-216.15,0.00012999,2]
[339001180,1727115948959,-500.0,0.00012999,2]
[339001181,1727115948982,-500.0,0.00012999,2]
[339001182,1727115949005,-500.0,0.00012999,2]
[339001183,1727115949027,-207.81,0.00012999,2]
[339001184,1727115949051,-151.0,0.00012999,2]
[339001185,1727115949074,-500.0,0.00012999,2]
[339001186,1727115949096,-500.0,0.00012999,2]
[339001187,1727115949118,-500.0,0.00012999,2]
[339001188,1727115949141,-500.0,0.00012999,2]
[339001189,1727115949164,-500.0,0.00012999,2]
[339001190,1727115949186,-500.0,0.00012999,2]
[339001191,1727115949209,-500.0,0.00012999,2]
[339001192,1727115949231,-500.0,0.00012999,2]
[339001193,1727115949253,-500.0,0.00012999,2]
[339001194,1727115949276,-500.0,0.00012999,2]
[339001195,1727115949298,-440.21135432,0.00012999,2]
[339001196,1727115949319,-151.0,0.00012999,2]
[339001197,1727115949341,-151.0,0.00012999,2]
[339001198,1727115949365,-151.0,0.00012999,2]
[339001199,1727115949387,-500.0,0.00012999,2]
[339001200,1727115949409,-355.27452565,0.00012999,2]
[339001201,1727115949430,-428.825387,0.00012999,2]
[339001202,1727115949455,-319.4,0.00012999,2]
[339001203,1727115949477,-428.825387,0.00012999,2]
[339001204,1727115949499,-151.0,0.00012999,2]
[339001205,1727115949525,-151.0,0.00012999,2]
[339001206,1727115949546,-151.0,0.00012999,2]
[339001207,1727115949566,-500.0,0.00012999,2]
[339001208,1727115949589,-500.0,0.00012999,2]
[339001209,1727115949610,-500.0,0.00012999,2]
[339001210,1727115949631,-500.0,0.00012999,2]
[339001211,1727115949653,-500.0,0.00012999,2]
[339001212,1727115949674,-199.25442913,0.00012999,2]
[339001213,1727115949695,-500.0,0.00012999,2]
[339001214,1727115949722,-500.0,0.00012999,2]
[339001215,1727115949744,-183.41580722,0.00012999,2]
[339001216,1727115949767,-500.0,0.00012999,2]
[339001217,1727115949788,-500.0,0.00012999,2]
[339001218,1727115949810,-500.0,0.00012999,2]
[339001219,1727115949835,-500.0,0.00012999,2]
[339001220,1727115949857,-500.0,0.00012999,2]
[339001221,1727115949879,-500.0,0.00012999,2]
[339001222,1727115949900,-500.0,0.00012999,2]
[339001223,1727115949922,-500.0,0.00012999,2]
[339001224,1727115949944,-234.04019091,0.00012999,2]
[339001225,1727115949970,-503.83,0.00012999,2]
[339001226,1727115949993,-503.83,0.00012999,2]
[339001227,1727115950014,-503.83,0.00012999,2]
[339001228,1727115950036,-503.83,0.00012999,2]
[339001229,1727115950056,-503.83,0.00012999,2]
[339001230,1727115950077,-503.83,0.00012999,2]
[339001231,1727115950098,-503.83,0.00012999,2]
[339001232,1727115950118,-503.83,0.00012999,2]
[339001233,1727115950139,-503.83,0.00012999,2]
[339001234,1727115950161,-503.83,0.00012999,2]
[339001235,1727115950181,-503.83,0.00012999,2]
[339001236,1727115950204,-503.83,0.00012999,2]
[339001237,1727115950225,-503.83,0.00012999,2]
[339001238,1727115950247,-151.0,0.00012999,2]
[339001239,1727115950268,-503.83,0.00012999,2]
[339001240,1727115950290,-503.83,0.00012999,2]
[339001241,1727115950311,-503.83,0.00012999,2]
[339001242,1727115950332,-227.215113,0.00012999,2]
[339001243,1727115950354,-503.83,0.00012999,2]
[339001244,1727115950377,-503.83,0.00012999,2]
[339001245,1727115950399,-504.03584621,0.00012999,2]
[339001246,1727115950420,-227.215113,0.00012999,2]
[339001247,1727115950442,-547.65,0.00012999,2]
[339001248,1727115950464,-500.0,0.00012999,2]
[339001249,1727115950485,-500.0,0.00012999,2]
[339001250,1727115950506,-500.0,0.00012999,2]
[339001251,1727115950528,-500.0,0.00012999,2]
[339001252,1727115950550,-500.0,0.00012999,2]
[339001253,1727115950571,-406.56,0.00012999,2]
[339001254,1727115950593,-500.0,0.00012999,2]
[339001255,1727115950614,-500.0,0.00012999,2]
[339001256,1727115950636,-500.0,0.00012999,2]
[339001257,1727115950656,-500.0,0.00012999,2]
[339001258,1727115950678,-293.04670344,0.00012999,2]
[339001259,1727115950700,-588.11215097,0.00012999,2]
[339001260,1727115950733,-500.0,0.00012999,2]
[339001261,1727115950754,-500.0,0.00012999,2]
[339001262,1727115950776,-500.0,0.00012999,2]
[339001263,1727115950797,-500.0,0.00012999,2]
[339001264,1727115950820,-500.0,0.00012999,2]
[339001265,1727115950840,-500.0,0.00012999,2]
[339001266,1727115950862,-283.14084852,0.00012999,2]
[339001267,1727115950885,-1709591.32953134,0.00013,2]
[339001268,1727115950907,-201.0,0.00013,2]
[339001269,1727115950928,-201.0,0.00013,2]
[339001270,1727115950951,-206.0,0.00013,2]
[339001271,1727115950974,-206.0,0.00013,2]
[339001272,1727115950996,-206.0,0.00013,2]
[339001273,1727115951017,-206.0,0.00013,2]
[339001274,1727115951039,-500.0,0.00013,2]
[339001275,1727115951062,-47293.9239841,0.00013,2]
[339001276,1727115951087,-385693.33976049,0.00013,2]
[339001277,1727115951109,-297.95129186,0.00013,2]
[339001278,1727115951130,-2066.1,0.00013,2]
[339001279,1727115951155,-778467.81818225,0.00013,2]
[339001280,1727115951176,-10000.0,0.00013,2]
[339001281,1727115951197,-199.0,0.00013,2]
[339001282,1727115951226,-3537264.95612021,0.00013,2]
[339001283,1727115977368,591.46,0.00010273,2]
[339001297,1727116105050,240.64,0.00010959,2]
[339001298,1727116133497,1050.0,0.00011,2]
[339001347,1727116232008,-575.7,0.00012126,2]
[339001348,1727116232018,-250.0,0.0001213,2]
[339001349,1727116232028,-174.55,0.0001213,2]
[339001350,1727116232038,-360.06,0.0001213,2]
[339001351,1727116232047,-2000.0,0.00012156,2]
[339001352,1727116232057,-250.0,0.00012156,2]
[339001353,1727116232066,-591.46,0.00012537,2]
[339001354,1727116232075,-420.1107,0.00012784,2]
[339001355,1727116232086,-310.01809956,0.000128,4]
[339001356,1727116232095,-300.0,0.00012848,2]
[339001357,1727116232105,-2097.45,0.00012849,2]
[339001358,1727116232115,-2182.63084127,0.00012899,2]
[339001359,1727116232128,-5317.36915873,0.00012899,2]
[339001360,1727116232138,-163.78382923,0.000129,2]
[339001361,1727116232147,-164.28,0.000129,2]
[339001362,1727116232157,-9148.73840974,0.000129,2]
[339001363,1727116232167,-500.0,0.00012973,2]
[339001364,1727116232177,-151.71,0.0001299,2]
[339001365,1727116232187,-7882.1905235,0.00012996,2]
[339001366,1727116232196,-25005.2211487,0.00012996,2]
[339001367,1727116232206,-467562.05020062,0.00013,2]
[339001368,1727116232218,-505.6777258,0.00013,2]
[339001369,1727116232240,-1357.03628517,0.00013,2]
[339001380,1727116238297,-1783.30550755,0.00013,2]
[339001381,1727116238385,-1787.08258361,0.00013,2]
[339001382,1727116238399,-280.695,0.00013,2]
[339001383,1727116238417,-1121.48036,0.00013,2]
[339001526,1727116239974,-5615.0,0.00013,2]
[339001530,1727116240000,-887.80368,0.00013,2]
[339001532,1727116240012,-635.83,0.00013,2]
[339001534,1727116240023,-48878.22690131,0.00013,2]
[339001536,1727116240034,-82758.66586529,0.00013,2]
[339001545,1727116240106,-147176.37748953,0.00013,2]
[339001547,1727116240118,-1199.40119229,0.00013,2]
[339001549,1727116240129,-2951.7197915,0.00013,2]
[339001551,1727116240140,-1300.0,0.00013,2]
[339001553,1727116240152,-186696.30956167,0.00013,2]
[339001556,1727116240164,-4287.70000001,0.00013,2]
[339001558,1727116240176,-900.50715696,0.00013,2]
[339001560,1727116240187,-505.66665384,0.00013,2]
[339001562,1727116240199,-1593.55023297,0.00013,2]
[339001564,1727116240210,-453.8784,0.00013,2]
[339001567,1727116240227,-352768.40545461,0.00013,2]
[339001569,1727116240239,-538.8683748,0.00013,2]
[339001572,1727116240251,-744.96847343,0.00013,2]
[339001573,1727116240263,-3205.67625059,0.00013,2]
[339001575,1727116240276,-267.51464373,0.00013,2]
[339001577,1727116240288,-5169.12813013,0.00013,2]
[339001867,1727116243106,-1017.6830018,0.000129,2]
[339001869,1727116243118,-1189.88173211,0.000129,2]
[339001871,1727116243129,-446.51173508,0.000129,2]
[339001873,1727116243141,-1360.0494024,0.000129,2]
[339001875,1727116243152,-6131.01052861,0.000129,2]
[339001877,1727116243161,-44299.67238136,0.00013,2]
[339001881,1727116243180,-277867.79436085,0.00013,2]
[339001883,1727116243191,-1749533.05739397,0.00013,2]
[339001885,1727116243202,-575.47544634,0.00013,2]
[339001886,1727116243213,-290.19323931,0.00013,2]
[339001887,1727116243224,-96462.0,0.00013,2]
[339001888,1727116243235,-436.78634993,0.00013,2]
[339001889,1727116243246,-7898.999995,0.00013,2]
[339001890,1727116243257,-281.326473,0.00013,2]
[339001891,1727116243268,-6680.291501,0.00013,2]
[339001892,1727116243279,-405.466,0.00013,2]
[339001893,1727116243290,-7979.52814858,0.00013,2]
[339001894,1727116243306,-313.60578957,0.00013,2]
[339001895,1727116243318,-3466.04534151,0.00013,2]
[339001896,1727116243330,-2156.18686136,0.00013,2]
[339001897,1727116243341,-600.64996105,0.00013,2]
[339001898,1727116243353,-3695.10176852,0.00013,2]
[339001899,1727116243364,-460.32635449,0.00013,2]
[339001900,1727116243375,-381.16870133,0.00013,2]
[339001901,1727116243386,-5461.22,0.00013,2]
[339002672,1727116252036,-0.01401963,0.00012999,2]
[339002679,1727116252091,-499.98598037,0.00012999,2]
[339002681,1727116252101,-78.10401963,0.00012999,2]
[339002684,1727116252116,-411.80207839,0.00012999,2]
[339002686,1727116252126,-207.95812474,0.00013,2]
[339002688,1727116252139,-833249.52052817,0.00013,2]
[339002691,1727116252152,-269.24,0.00013,2]
[339002722,1727116252423,-1728.58052957,0.00013,2]
[339002724,1727116252436,-540.93897836,0.00013,2]
[339002726,1727116252448,-4004.75103814,0.00013,2]
[339002729,1727116252460,-1273.9428,0.00013,2]
[339002731,1727116252473,-1751.10562619,0.00013,2]
[339002733,1727116252485,-9583.20000007,0.00013,2]
[339002735,1727116252497,-49765.61417213,0.00013,2]
[339002738,1727116252510,-13064.08927026,0.00013,2]
[339002740,1727116252522,-80000.0,0.00013,2]
[339002742,1727116252534,-1080.56201117,0.00013,2]
[339003317,1727116611730,532.31,0.00010122,2]
[339003318,1727116735595,177.77,0.00010959,2]
[339003320,1727117104367,500.0,0.00015,120]
[339003364,1727117297686,589.32,9.755e-05,2]
[339003424,1727117367176,165.37,0.00010959,2]
[339003506,1727117432199,-180.03,0.00011576,2]
[339003508,1727117432209,-426.16,0.00011584,2]
[339003510,1727117432219,-638.57,0.00011644,2]
[339003511,1727117432229,-217.65130465,0.00011703,2]
[339003512,1727117432241,-32.34869535,0.00011703,2]
[339003513,1727117432250,-23900.0,0.00011755,2]
[339003514,1727117432261,-200.0,0.00011758,2]
[339003515,1727117432270,-796.76,0.00011767,2]
[339003516,1727117432279,-1000.0,0.00011807,2]
[339003517,1727117432289,-618.2,0.0001181,2]
[339003518,1727117432302,-500.0,0.0001181,2]
[339003519,1727117432312,-250.0,0.00011811,2]
[339003520,1727117432323,-155.45,0.00011856,2]
[339003521,1727117432332,-300.755,0.00011886,2]
[339003522,1727117432342,-176.93,0.00011905,2]
[339003523,1727117432351,-250.0,0.00011948,2]
[339003524,1727117432360,-150.0,0.00011973,2]
[339003525,1727117432370,-589.32,0.00012019,2]
[339003526,1727117432379,-174.99,0.00012038,2]
[339003527,1727117432391,-170.97,0.00012109,2]
[339003528,1727117432400,-29897.92886512,0.000128,2]
[339003529,1727117432411,-499.99,0.000128,2]
[339003530,1727117432421,-325.88470147,0.00012841,2]
[339003531,1727117432431,-179.76,0.00012894,2]
[339003532,1727117432441,-500.0,0.00012896,2]
[339003533,1727117432451,-2000.0,0.00012896,2]
[339003534,1727117432460,-500.0,0.00012896,2]
[339003535,1727117432470,-500.0,0.00012896,2]
[339003536,1727117432480,-62836.8928,0.000129,2]
[339003537,1727117432491,-7500.0,0.000129,2]
[339003538,1727117432501,-1006.0,0.000129,3]
[339003539,1727117432510,-157.52590792,0.000129,2]
[339003540,1727117432520,-150.0,0.000129,2]
[339003542,1727117432530,-1000.0,0.000129,2]
[339003545,1727117432541,-13498.40920327,0.000129,2]
[339003566,1727117432734,-262.45,0.000129,2]
[339003568,1727117432744,-1098.0,0.000129,2]
[339003570,1727117432756,-344.51611968,0.000129,2]
[339003572,1727117432766,-1558.53671076,0.000129,2]
[339003574,1727117432776,-500.0,0.00012973,2]
[339003576,1727117432786,-808.62038398,0.00012997,2]
[339003578,1727117432795,-2268.0,0.00012999,2]
[339003580,1727117432805,-2010.06,0.00012999,2]
[339003582,1727117432814,-305.08856864,0.00012999,2]
[339003584,1727117432823,-500.0,0.00012999,2]
[339003586,1727117432832,-190.4187291,0.00013,2]
[339003588,1727117432841,-3843.20629094,0.00013,2]
[339003590,1727117432850,-898624.66498997,0.00013,2]
[339003592,1727117432859,-320510.14929841,0.00013,2]
[339003594,1727117432868,-333023.96382203,0.00013,2]